fUST/lending_fUST_20250610
["ID","MTS","AMOUNT","RATE_DAILY","PERIOD"]
[365164408,1749507038590,-460.0,0.00021908,4]
[365164409,1749507038600,-460.0,0.00021908,4]
[365164410,1749507038609,-460.0,0.00021908,4]
[365164411,1749507038619,-460.0,0.00021908,4]
[365164412,1749507038629,-430.0,0.00021909,4]
[365164413,1749507038638,-172.62610409,0.00021909,4]
[365164414,1749507038648,-460.0,0.00021909,4]
[365164415,1749507038658,-460.0,0.00021909,4]
[365164416,1749507038668,-593.95,0.00021909,4]
[365164417,1749507038678,-460.0,0.00021909,4]
[365164418,1749507038688,-235.17245744,0.00022003,6]
[365164419,1749507038698,-164.97815768,0.00022082,2]
[365164420,1749507038708,-235.17245744,0.00022107,6]
[365164421,1749507038718,-460.0,0.00022181,4]
[365164422,1749507038727,-2351.44,0.00022181,4]
[365164423,1749507038738,-460.0,0.00022181,4]
[365164424,1749507038748,-497.37,0.00022181,4]
[365164425,1749507038758,-460.0,0.00022181,4]
[365164426,1749507038767,-460.0,0.00022182,4]
[365164427,1749507038778,-460.0,0.00022182,4]
[365164428,1749507038788,-460.0,0.00022182,4]
[365164429,1749507038797,-460.0,0.00022182,4]
[365164430,1749507038806,-460.0,0.00022182,4]
[365164431,1749507038816,-460.0,0.00022183,4]
[365164432,1749507038826,-460.0,0.00022183,4]
[365164433,1749507038838,-593.95,0.00022183,4]
[365164434,1749507038850,-460.0,0.00022183,4]
[365164435,1749507038860,-235.17245744,0.0002221,6]
[365164436,1749507038870,-235.17245744,0.00022314,7]
[365164437,1749507038879,-2356.58,0.00022398,2]
[365164438,1749507038889,-168.337,0.00022417,2]
[365164439,1749507038899,-235.17245744,0.00022417,7]
[365164440,1749507038909,-460.0,0.00022455,4]
[365164441,1749507038918,-2351.44,0.00022455,4]
[365164442,1749507038927,-460.0,0.00022455,4]
[365164443,1749507038937,-497.37,0.00022455,4]
[365164444,1749507038947,-460.0,0.00022455,4]
[365164445,1749507038956,-460.0,0.00022456,4]
[365164446,1749507038966,-460.0,0.00022456,4]
[365164447,1749507038975,-460.0,0.00022456,4]
[365164448,1749507038985,-460.0,0.00022456,4]
[365164449,1749507038994,-460.0,0.00022456,4]
[365164450,1749507039004,-438.68804243,0.00022456,2]
[365164451,1749507039013,-460.0,0.00022457,4]
[365164452,1749507039023,-460.0,0.00022457,4]
[365164453,1749507039032,-593.95,0.00022457,4]
[365164454,1749507039042,-389.95014627,0.00022457,4]
[365164455,1749507039052,-164.97815762,0.00022498,2]
[365164456,1749507039062,-235.17245744,0.00022521,7]
[365164457,1749507039071,-501.63539255,0.0002256,2]
[365164458,1749507039084,-235.17245744,0.00022624,7]
[365164459,1749507039093,-235.17245744,0.00022728,7]
[365164460,1749507039103,-460.0,0.00022729,4]
[365164461,1749507039112,-2351.44,0.00022729,4]
[365164462,1749507039122,-460.0,0.00022729,4]
[365164463,1749507039131,-497.37,0.00022729,4]
[365164464,1749507039141,-460.0,0.00022729,4]
[365164465,1749507039151,-460.0,0.0002273,4]
[365164466,1749507039161,-460.0,0.0002273,4]
[365164467,1749507039172,-460.0,0.0002273,4]
[365164468,1749507039183,-257.43596303,0.0002273,4]
[365164469,1749507039193,-460.0,0.0002273,4]
[365164470,1749507039203,-460.0,0.00022731,4]
[365164471,1749507039213,-460.0,0.00022731,4]
[365164472,1749507039223,-593.95,0.00022731,4]
[365164473,1749507039233,-207.4,0.00022799,2]
[365164474,1749507039244,-235.17245744,0.00022831,8]
[365164475,1749507039254,-164.97815762,0.00022914,2]
[365164476,1749507039264,-235.17245744,0.00022934,8]
[365164477,1749507039274,-460.0,0.00023003,4]
[365164478,1749507039284,-2351.44,0.00023003,4]
[365164479,1749507039294,-460.0,0.00023003,4]
[365164480,1749507039304,-497.37,0.00023003,4]
[365164481,1749507039314,-460.0,0.00023003,4]
[365164482,1749507039324,-460.0,0.00023004,4]
[365164483,1749507039339,-460.0,0.00023004,4]
[365164484,1749507039349,-460.0,0.00023004,4]
[365164485,1749507039358,-460.0,0.00023004,4]
[365164486,1749507039368,-452.9379514,0.00023005,4]
[365164487,1749507039378,-460.0,0.00023005,4]
[365164488,1749507039387,-593.95,0.00023005,4]
[365164489,1749507039396,-235.17245744,0.00023038,8]
[365164490,1749507039405,-235.17245744,0.00023141,8]
[365164491,1749507039414,-235.17245744,0.00023245,8]
[365164492,1749507039424,-460.0,0.00023277,4]
[365164493,1749507039433,-2351.44,0.00023277,4]
[365164494,1749507039441,-460.0,0.00023277,4]
[365164495,1749507039448,-497.37,0.00023277,4]
[365164496,1749507039459,-460.0,0.00023277,4]
[365164497,1749507039470,-460.0,0.00023278,4]
[365164498,1749507039479,-460.0,0.00023278,4]
[365164499,1749507039489,-460.0,0.00023278,4]
[365164500,1749507039499,-460.0,0.00023278,4]
[365164501,1749507039508,-460.0,0.00023279,4]
[365164502,1749507039518,-593.95,0.00023279,4]
[365164503,1749507039527,-3000.0,0.000233,2]
[365164504,1749507039537,-3000.0,0.0002331,2]
[365164505,1749507039547,-3000.0,0.0002332,2]
[365164506,1749507039556,-164.97815762,0.0002333,2]
[365164507,1749507039566,-3000.0,0.0002333,2]
[365164508,1749507039575,-3000.0,0.0002334,2]
[365164509,1749507039587,-235.17245744,0.00023348,9]
[365164510,1749507039596,-3000.0,0.0002335,2]
[365164511,1749507039606,-3000.0,0.0002336,2]
[365164512,1749507039615,-3000.0,0.0002337,2]
[365164513,1749507039625,-3142.11,0.00023372,2]
[365164514,1749507039635,-3000.0,0.0002338,2]
[365164515,1749507039645,-3000.0,0.0002339,2]
[365164516,1749507039654,-3000.0,0.000234,2]
[365164517,1749507039664,-3000.0,0.0002341,2]
[365164518,1749507039674,-3000.0,0.0002342,2]
[365164519,1749507039683,-3000.0,0.0002343,2]
[365164520,1749507039692,-3000.0,0.0002344,2]
[365164521,1749507039702,-3000.0,0.0002345,2]
[365164522,1749507039712,-235.17245744,0.00023452,9]
[365164523,1749507039721,-3000.0,0.0002346,2]
[365164524,1749507039732,-606.16145168,0.0002347,2]
[365164525,1749507039745,-1000.0,0.0002347,2]
[365164526,1749507039757,-1393.83854832,0.0002347,2]
[365164527,1749507039767,-3447.83282,0.0002348,2]
[365164528,1749507039778,-842.5625,0.00023518,2]
[365164529,1749507039788,-229.64266968,0.00023518,2]
[365164530,1749507039798,-423.83542519,0.00023518,2]
[365164531,1749507039808,-160.0,0.00023518,2]
[365164532,1749507039818,-834.7738823,0.00023518,2]
[365164534,1749507039831,-213.08899333,0.00023518,2]
[365164535,1749507039841,-160.0,0.00023518,2]
[365164536,1749507039851,-798.858747,0.0002352,3]
[365164537,1749507039862,-242.133,0.00023522,2]
[365164538,1749507039871,-196.942,0.00023522,2]
[365164539,1749507039882,-150.0,0.00023522,2]
[365164540,1749507039891,-150.79,0.00023522,2]
[365164541,1749507039900,-154.88,0.00023522,2]
[365164542,1749507039909,-150.0,0.00023522,2]
[365164543,1749507039919,-150.097,0.00023522,2]
[365164544,1749507039929,-963.0,0.00023522,2]
[365164545,1749507039938,-2160.0,0.00023522,2]
[365164546,1749507039948,-653.0,0.00023522,2]
[365164547,1749507039957,-463.193,0.00023522,2]
[365164548,1749507039967,-460.0,0.00023551,4]
[365164549,1749507039976,-2351.44,0.00023551,4]
[365164550,1749507039986,-460.0,0.00023551,4]
[365164551,1749507039996,-497.37,0.00023551,4]
[365164552,1749507040005,-460.0,0.00023551,4]
[365164554,1749507040015,-12500.0,0.00023551,3]
[365164556,1749507040024,-160.0,0.00023551,3]
[365164558,1749507040033,-229.64266968,0.00023551,3]
[365164561,1749507040043,-213.08899333,0.00023551,3]
[365164562,1749507040052,-834.7738823,0.00023551,3]
[365164563,1749507040062,-60.03171884,0.00023552,4]
[365164564,1749507040073,-399.96828116,0.00023552,4]
[365164565,1749507040084,-460.0,0.00023552,4]
[365164566,1749507040094,-460.0,0.00023552,4]
[365164567,1749507040103,-0.03171884,0.00023552,4]
[365164648,1749507043674,-381.44168871,0.00021907,4]
[365164651,1749507043686,-78.55831129,0.00021907,4]
[365164652,1749507043695,-253.88284901,0.00021907,4]
[365164655,1749507043707,-176.11715099,0.00021907,4]
[365164657,1749507043716,-460.0,0.00022181,4]
[365164659,1749507043726,-443.08238276,0.00022455,4]
[365164661,1749507043735,-138.68145168,0.00023552,4]
[365164664,1749507043746,-321.28682948,0.00023552,4]
[365164667,1749507043756,-198.19317048,0.00023553,4]
[365164949,1749507046598,-261.80682952,0.00023553,4]
[365164951,1749507046609,-593.95,0.00023553,4]
[365164954,1749507046619,-235.17245744,0.00023555,9]
[365164956,1749507046628,-181.87007569,0.00023559,2]
[365164957,1749507046638,-9891.06663105,0.0002356,3]
[365166237,1749507162313,166.12604,0.00013699,2]
[365166260,1749508142199,153.0,0.00017999,2]
[365166302,1749508232705,-30530.78341297,0.00018,2]
[365166304,1749508232715,-502.64746631,0.00019212,2]
[365166306,1749508232726,-165.53687117,0.000196,2]
[365166307,1749508232736,-206.65286208,0.000197,2]
[365166308,1749508232746,-206.65286196,0.000197,2]
[365166309,1749508232757,-206.65286196,0.000197,2]
[365166310,1749508232767,-206.65286196,0.00019718,2]
[365166311,1749508232776,-206.65286196,0.00019991,2]
[365166312,1749508232786,-150.09770374,0.0002,7]
[365166313,1749508232795,-500.0,0.00020223,2]
[365166314,1749508232806,-206.65286196,0.00020264,3]
[365166315,1749508232819,-738.66,0.00020313,2]
[365166316,1749508232829,-24349.9079111,0.00020437,2]
[365166317,1749508232839,-206.65286196,0.00020536,3]
[365166318,1749508232849,-173.082128,0.00020794,2]
[365166319,1749508232860,-206.65286196,0.00020809,4]
[365166320,1749508232870,-206.65286196,0.00021082,4]
[365166321,1749508232879,-165.53687115,0.00021259,2]
[365166322,1749508232891,-1477.32,0.00021281,2]
[365166323,1749508232901,-500.0,0.00021287,2]
[365166324,1749508232910,-206.65286196,0.00021355,5]
[365166325,1749508232921,-150.0,0.0002146,2]
[365166326,1749508232930,-206.65286196,0.00021627,5]
[365166327,1749508232940,-250.0,0.00021682,2]
[365166328,1749508232949,-206.65286196,0.000219,6]
[365166329,1749508232959,-241.12,0.00021906,4]
[365166330,1749508232969,-460.0,0.00021906,4]
[365166331,1749508232978,-2420.69,0.00021906,4]
[365166332,1749508232990,-515.19,0.00021906,4]
[365166333,1749508233000,-460.0,0.00021906,4]
[365166334,1749508233010,-460.0,0.00021906,4]
[365166335,1749508233019,-440.0,0.00021906,4]
[365166336,1749508233029,-460.0,0.00021906,4]
[365166337,1749508233039,-460.0,0.00021906,4]
[365166338,1749508233050,-460.0,0.00021906,4]
[365166339,1749508233060,-619.55,0.00021906,4]
[365166340,1749508233071,-440.0,0.00021907,2]
[365166341,1749508233081,-440.0,0.00021907,4]
[365166342,1749508233091,-582.25277355,0.00021907,4]
[365166343,1749508233101,-440.0,0.00021907,4]
[365166345,1749508233111,-440.0,0.00021907,4]
[365166346,1749508233121,-440.0,0.00021907,4]
[365166347,1749508233131,-440.0,0.00021907,4]
[365166348,1749508233141,-440.0,0.00021907,4]
[365166349,1749508233151,-440.0,0.00021907,4]
[365166350,1749508233161,-102.62545407,0.00021907,4]
[365166351,1749508233174,-337.37454593,0.00021907,4]
[365166352,1749508233185,-426.50166752,0.00021907,4]
[365166353,1749508233195,-440.0,0.00021907,4]
[365166354,1749508233205,-334.03918888,0.00021907,4]
[365166355,1749508233312,-105.96081112,0.00021907,4]
[365166356,1749508233322,-440.0,0.00021907,4]
[365166357,1749508233334,-440.0,0.00021907,4]
[365166358,1749508233345,-440.0,0.00021907,4]
[365166359,1749508233355,-440.0,0.00021907,4]
[365166360,1749508233365,-483.39925872,0.00021907,4]
[365166361,1749508233375,-460.0,0.00021907,4]
[365166362,1749508233386,-420.0,0.00021907,4]
[365166363,1749508233397,-440.0,0.00021907,4]
[365166364,1749508233407,-460.0,0.00021907,4]
[365166365,1749508233417,-460.0,0.00021907,4]
[365166366,1749508233427,-460.0,0.00021907,4]
[365166367,1749508233437,-460.0,0.00021907,4]
[365166368,1749508233447,-460.0,0.00021907,4]
[365166369,1749508233456,-460.0,0.00021907,4]
[365166370,1749508233466,-440.0,0.00021907,4]
[365166371,1749508233476,-440.0,0.00021907,4]
[365166372,1749508233486,-440.0,0.00021907,4]
[365166373,1749508233496,-460.0,0.00021907,4]
[365166374,1749508233507,-460.0,0.00021907,4]
[365166375,1749508233517,-440.0,0.00021907,4]
[365166376,1749508233527,-440.0,0.00021907,4]
[365166377,1749508233537,-440.0,0.00021907,4]
[365166378,1749508233546,-460.0,0.00021907,4]
[365166379,1749508233557,-440.0,0.00021907,4]
[365166380,1749508233567,-557.15202567,0.00021907,4]
[365166381,1749508233577,-460.0,0.00021907,4]
[365166382,1749508233588,-460.0,0.00021907,4]
[365166383,1749508233599,-440.0,0.00021907,4]
[365166384,1749508233609,-440.0,0.00021907,4]
[365166385,1749508233620,-440.0,0.00021907,4]
[365166386,1749508233630,-440.0,0.00021907,4]
[365166387,1749508233642,-440.0,0.00021907,4]
[365166388,1749508233653,-460.0,0.00021907,4]
[365166389,1749508233663,-460.0,0.00021908,4]
[365166390,1749508233673,-440.0,0.00021908,4]
[365166391,1749508233686,-401.89756893,0.00021908,4]
[365166392,1749508233696,-303.47442718,0.00021908,4]
[365166393,1749508233706,-175.54712852,0.00021908,4]
[365166394,1749508233717,-440.0,0.00021908,4]
[365166395,1749508233727,-440.0,0.00021908,4]
[365166396,1749508233737,-440.0,0.00021908,4]
[365166397,1749508233747,-554.11897248,0.00021908,4]
[365166398,1749508233757,-440.0,0.00021908,4]
[365166399,1749508233767,-440.0,0.00021908,4]
[365166400,1749508233778,-440.0,0.00021908,4]
[365166401,1749508233788,-460.0,0.00021908,4]
[365166402,1749508233798,-460.0,0.00021908,4]
[365166403,1749508233810,-440.0,0.00021908,4]
[365166404,1749508233821,-731.37,0.00021938,3]
[365166405,1749508233831,-731.37,0.00022038,4]
[365166406,1749508233841,-731.37,0.00022138,7]
[365166407,1749508233850,-11856.04170836,0.00022145,2]
[365166408,1749508233859,-213.08899333,0.00022145,2]
[365166409,1749508233868,-834.7738823,0.00022145,2]
[365166410,1749508233876,-160.0,0.00022145,2]
[365166411,1749508233892,-206.65286196,0.00022173,6]
[365166412,1749508233906,-500.0,0.00022179,2]
[365166413,1749508233916,-463.56064296,0.00022179,2]
[365166414,1749508233926,-460.0,0.0002218,4]
[365166415,1749508233936,-2420.69,0.0002218,4]
[365166416,1749508233946,-515.19,0.0002218,4]
[365166417,1749508233956,-460.0,0.0002218,4]
[365166418,1749508233966,-460.0,0.0002218,4]
[365166419,1749508233976,-460.0,0.0002218,4]
[365166420,1749508233985,-340.59134368,0.0002218,4]
[365166421,1749508233995,-390.0,0.0002218,4]
[365166422,1749508234005,-619.55,0.0002218,4]
[365166423,1749508234015,-168.33885506,0.00022181,2]
[365166424,1749508234025,-460.0,0.00022181,4]
[365166425,1749508234035,-460.0,0.00022181,4]
[365166426,1749508234046,-420.0,0.00022181,4]
[365166427,1749508234057,-420.0,0.00022181,4]
[365166428,1749508234067,-420.0,0.00022181,4]
[365166429,1749508234077,-420.0,0.00022181,4]
[365166430,1749508234087,-420.0,0.00022181,4]
[365166431,1749508234097,-568.05692561,0.00022181,4]
[365166432,1749508234107,-420.0,0.00022181,4]
[365166433,1749508234117,-420.0,0.00022181,4]
[365166434,1749508234126,-460.0,0.00022181,4]
[365166435,1749508234137,-460.0,0.00022181,4]
[365166436,1749508234148,-460.0,0.00022181,4]
[365166437,1749508234158,-420.0,0.00022182,4]
[365166438,1749508234167,-320.46658762,0.00022182,4]
[365166439,1749508234177,-460.0,0.00022182,4]
[365166440,1749508234186,-731.37,0.00022238,6]
[365166441,1749508234197,-2215.98,0.00022248,2]
[365166442,1749508234206,-731.37,0.00022338,7]
[365166443,1749508234217,-500.0,0.00022351,2]
[365166444,1749508234227,-731.37,0.00022438,2]
[365166445,1749508234236,-206.65286196,0.00022445,7]
[365166446,1749508234246,-460.0,0.00022454,4]
[365166447,1749508234256,-2420.69,0.00022454,4]
[365166448,1749508234265,-515.19,0.00022454,4]
[365166449,1749508234275,-460.0,0.00022454,4]
[365166450,1749508234285,-460.0,0.00022454,4]
[365166451,1749508234295,-350.0,0.00022454,4]
[365166452,1749508234305,-57.45042574,0.00022454,4]
[365166486,1749508238853,-459.44791126,0.00020436,2]
[365166488,1749508238864,-460.0,0.00021906,4]
[365166490,1749508238874,-686.24859802,0.00022099,2]
[365166492,1749508238886,-530.55754434,0.00022099,2]
[365166499,1749508238946,-14783.19385764,0.00022099,2]
[365166501,1749508238955,-2960.06751533,0.00022099,2]
[365166503,1749508238965,-460.0,0.0002218,4]
[365166504,1749508238974,-562.09957426,0.00022454,4]
[365166505,1749508238983,-460.0,0.00022454,4]
[365166506,1749508238993,-460.0,0.00022455,4]
[365166507,1749508239003,-400.0,0.00022455,4]
[365166508,1749508239012,-460.0,0.00022455,4]
[365166509,1749508239022,-460.0,0.00022455,4]
[365166510,1749508239031,-460.0,0.00022455,4]
[365166511,1749508239041,-460.0,0.00022456,4]
[365166512,1749508239050,-1152.8463866,0.00022538,2]
[365166513,1749508239059,-731.37,0.00022538,3]
[365166514,1749508239069,-731.37,0.00022638,4]
[365166515,1749508239078,-206.65286196,0.00022718,7]
[365166516,1749508239087,-460.0,0.00022728,4]
[365166517,1749508239096,-2420.69,0.00022728,4]
[365166518,1749508239105,-515.19,0.00022728,4]
[365166519,1749508239115,-460.0,0.00022728,4]
[365166520,1749508239124,-460.0,0.00022728,4]
[365166521,1749508239133,-619.55,0.00022728,4]
[365166522,1749508239144,-460.0,0.00022728,4]
[365166523,1749508239154,-460.0,0.00022729,4]
[365166524,1749508239163,-460.0,0.00022729,4]
[365166525,1749508239172,-420.0,0.00022729,4]
[365166526,1749508239181,-460.0,0.00022729,4]
[365166527,1749508239191,-460.0,0.0002273,4]
[365166528,1749508239200,-731.37,0.00022738,2]
[365166529,1749508239210,-3265.2441264,0.00022799,2]
[365166530,1749508239219,-207.4,0.00022799,2]
[365166531,1749508239229,-731.37,0.00022838,3]
[365166532,1749508239238,-1498.9267616,0.000229,2]
[365166533,1749508239247,-1312.34065884,0.00022902,2]
[365166534,1749508239256,-165.53687115,0.00022919,2]
[365166535,1749508239266,-731.37,0.00022938,4]
[365166536,1749508239275,-505.79564037,0.00022973,2]
[365166537,1749508239284,-600.0,0.00022973,2]
[365166538,1749508239294,-206.65286196,0.00022991,8]
[365166539,1749508239303,-500.0,0.00022999,2]
[365166540,1749508239312,-500.0,0.00022999,2]
[365166541,1749508239322,-500.0,0.00022999,2]
[365166542,1749508239331,-500.0,0.00022999,2]
[365166543,1749508239340,-507.43224228,0.00022999,2]
[365166544,1749508239349,-500.0,0.00022999,2]
[365166546,1749508239358,-500.0,0.00022999,2]
[365166548,1749508239368,-500.0,0.00022999,2]
[365166550,1749508239378,-500.0,0.00022999,2]
[365166552,1749508239387,-468.76681503,0.00022999,2]
[365166554,1749508239396,-500.0,0.00022999,2]
[365166555,1749508239406,-500.0,0.00022999,2]
[365166557,1749508239415,-25652.55827572,0.00023,2]
[365166559,1749508239425,-70477.61946912,0.00023,2]
[365166561,1749508239435,-12042.23098288,0.00023,2]
[365166563,1749508239444,-453206.68053604,0.00023,20]
[365166565,1749508239454,-460.0,0.00023002,4]
[365166567,1749508239465,-2420.69,0.00023002,4]
[365166569,1749508239474,-515.19,0.00023002,4]
[365166571,1749508239484,-460.0,0.00023002,4]
[365166573,1749508239494,-460.0,0.00023002,4]
[365166575,1749508239503,-619.55,0.00023002,4]
[365166577,1749508239514,-460.0,0.00023002,4]
[365166579,1749508239524,-460.0,0.00023003,4]
[365166581,1749508239534,-460.0,0.00023003,4]
[365166583,1749508239544,-460.0,0.00023003,4]
[365166585,1749508239554,-460.0,0.00023004,4]
[365166586,1749508239564,-731.37,0.00023038,4]
[365166587,1749508239574,-1498.92676158,0.00023102,2]
[365166588,1749508239584,-731.37,0.00023138,2]
[365166589,1749508239594,-2954.64,0.00023215,2]
[365166590,1749508239603,-731.37,0.00023238,2]
[365166591,1749508239614,-206.65286196,0.00023264,8]
[365166592,1749508239624,-460.0,0.00023276,4]
[365166593,1749508239634,-2420.69,0.00023276,4]
[365166594,1749508239645,-515.19,0.00023276,4]
[365166595,1749508239655,-460.0,0.00023276,4]
[365166596,1749508239666,-460.0,0.00023276,4]
[365166597,1749508239676,-619.55,0.00023276,4]
[365166598,1749508239686,-460.0,0.00023276,4]
[365166599,1749508239697,-460.0,0.00023277,4]
[365166600,1749508239708,-460.0,0.00023277,4]
[365166601,1749508239719,-440.0,0.00023277,4]
[365166602,1749508239728,-460.0,0.00023278,4]
[365166603,1749508239738,-1498.92676158,0.00023305,2]
[365166604,1749508239748,-731.37,0.00023338,6]
[365166605,1749508239757,-731.37,0.00023438,6]
[365166606,1749508239767,-500.0,0.00023469,2]
[365166607,1749508239777,-86634.22479,0.00023499,2]
[365166608,1749508239787,-8085.98879187,0.000235,2]
[365166609,1749508239796,-1498.92676158,0.00023507,2]
[365166610,1749508239806,-889.393164,0.0002352,3]
[365166611,1749508239818,-1200.0,0.00023521,2]
[365166612,1749508239828,-206.65286196,0.00023536,9]
[365166613,1749508239837,-731.37,0.00023538,5]
[365166614,1749508239847,-460.0,0.0002355,4]
[365166615,1749508239857,-2420.69,0.0002355,4]
[365166616,1749508239867,-515.19,0.0002355,4]
[365166617,1749508239877,-460.0,0.0002355,4]
[365166618,1749508239889,-488.67731275,0.0002355,4]
[365166619,1749508239899,-619.55,0.0002355,4]
[365166620,1749508239909,-460.0,0.0002355,4]
[365166621,1749508239919,-460.0,0.00023551,4]
[365166622,1749508239929,-460.0,0.00023551,4]
[365166623,1749508239939,-160.0,0.00023551,3]
[365166624,1749508239948,-460.0,0.00023552,4]
[365166625,1749508239958,-999.92556039,0.00023559,2]
[365166626,1749508239968,-2608.93336895,0.0002356,3]
[365166627,1749508239978,-12500.0,0.0002356,3]
[365166628,1749508239987,-229.64266968,0.0002356,3]
[365166629,1749508239997,-155.0,0.0002356,2]
[365166630,1749508240007,-834.7738823,0.0002356,3]
[365166631,1749508240016,-364.646625,0.00023562,2]
[365166632,1749508240026,-731.37,0.00023638,3]
[365166633,1749508240036,-405.0,0.00023687,2]
[365166634,1749508240046,-963.0,0.00023687,2]
[365166635,1749508240055,-1498.92676158,0.00023709,2]
[365166637,1749508240065,-179.01202907,0.00023733,2]
[365166638,1749508240078,-207.06825488,0.00023733,2]
[365166639,1749508240088,-731.37,0.00023738,6]
[365166640,1749508240097,-75.03946541,0.00023773,2]
[365166641,1749508240108,-424.96053459,0.00023773,2]
[365166642,1749508240118,-500.0,0.00023773,2]
[365166643,1749508240127,-251.62661953,0.00023773,2]
[365166644,1749508240139,-78.18258963,0.00023773,2]
[365166645,1749508240149,-500.0,0.00023773,2]
[365166646,1749508240159,-335.18905558,0.0002378,2]
[365166647,1749508240172,-293.78404497,0.0002378,2]
[365166648,1749508240184,-1227.02689945,0.0002378,2]
[365166650,1749508240193,-359.40659621,0.000238,3]
[365166696,1749508241081,-1052.4263568,0.000238,3]
[365166774,1749508243805,-407532.55690405,0.000238,3]
[365166793,1749508246780,-150.0,0.000217,2]
[365166794,1749508246791,-460.0,0.00021906,4]
[365166795,1749508246801,-460.0,0.0002218,4]
[365166796,1749508246811,-460.0,0.00022454,4]
[365166797,1749508246824,-460.0,0.00022728,4]
[365166798,1749508246834,-160.0,0.00022799,2]
[365166799,1749508246846,-460.0,0.00023002,4]
[365166800,1749508246855,-460.0,0.00023276,4]
[365166801,1749508246864,-460.0,0.0002355,4]
[365166802,1749508246874,-660663.05431217,0.000238,3]
[365166803,1749508246883,-834.7738823,0.000238,3]
[365166804,1749508247100,-206.65286196,0.00023809,9]
[365166805,1749508247109,-460.0,0.00023824,4]
[365166806,1749508247119,-2420.69,0.00023824,4]
[365166807,1749508247128,-515.19,0.00023824,4]
[365166808,1749508247138,-460.0,0.00023824,4]
[365166809,1749508247148,-619.55,0.00023824,4]
[365166810,1749508247157,-460.0,0.00023824,4]
[365166811,1749508247167,-460.0,0.00023824,4]
[365166812,1749508247176,-460.0,0.00023825,4]
[365166813,1749508247185,-460.0,0.00023826,4]
[365166814,1749508247195,-731.37,0.00023838,6]
[365166815,1749508247204,-353.1282096,0.00023863,2]
[365166816,1749508247213,-317.088591,0.00023863,2]
[365166817,1749508247222,-572.6068135,0.00023863,2]
[365166818,1749508247231,-1308.39402512,0.00023878,15]
[365166819,1749508247240,-731.37,0.00023938,3]
[365166820,1749508247250,-200.0,0.0002394,9]
[365166821,1749508247258,-21640.33447235,0.00023947,2]
[365166825,1749508415574,166.12604,0.00013699,2]
[365166826,1749508444274,1843.68,0.000243,120]
[365166840,1749509099543,1333.0,0.00023233,120]
[365166843,1749509385331,166.12604,0.00013699,2]
[365166853,1749509431764,-258.86082201,0.00019,2]
[365166854,1749509431975,-6672.19846166,0.00019,2]
[365166855,1749509431987,-692.15,0.00020466,2]
[365166856,1749509431998,-173.082128,0.00020696,2]
[365166858,1749509432010,-201.09358606,0.000209,4]
[365166860,1749509432021,-500.0,0.00021,2]
[365166861,1749509432032,-201.09358595,0.00021208,4]
[365166862,1749509432041,-440.0,0.00021367,4]
[365166863,1749509432051,-508.81,0.00021367,4]
[365166864,1749509432060,-460.0,0.00021367,4]
[365166865,1749509432070,-547.41,0.00021367,4]
[365166866,1749509432236,-460.0,0.00021367,4]
[365166867,1749509432246,-440.0,0.00021367,4]
[365166868,1749509432255,-440.0,0.00021367,4]
[365166869,1749509432265,-440.0,0.00021367,4]